bitfinex-derivatives/quotes_SOLF0:USTF0_20250904
["timestamp","ask_amount","ask_price","bid_price","bid_amount"]
[1756944001485,14.25,210.86,210.76,7.63]
[1756944002285,14.25,210.89,210.76,7.63]
[1756944002686,14.25,210.89,210.75,3.95549224]
[1756944002687,19.57114229,210.89,210.74,3.95549224]
[1756944002883,11.89114229,210.86,210.71,3.95549224]
[1756944003084,14.25,210.83,210.71,3.95549224]
[1756944003288,14.25,210.77,210.71,7.63]
[1756944003888,6.57,210.78,210.71,7.63]
[1756944005392,6.57,210.83,210.71,7.63]
[1756944005686,6.57,210.83,210.73,7.63]
[1756944006588,6.57,210.83,210.75,7.63]
[1756944007888,6.57,210.83,210.72,3.95549224]
[1756944008083,5.32114229,210.86,210.71,11.58549224]
[1756944008289,5.32114229,210.86,210.71,7.63]
[1756944008290,6.57,210.85,210.71,7.63]
[1756944008591,11.89114229,210.85,210.71,7.63]
[1756944008892,44.82,210.87,210.73,11.58549224]
[1756944009191,44.82,210.87,210.73,7.63]
[1756944009192,6.57,210.86,210.73,7.63]
[1756944010891,104.29,210.86,210.73,11.58549224]
[1756944011195,6.57,210.84,210.73,7.63]
[1756944012492,6.56,210.82,210.73,7.63]
[1756944014899,6.58,210.87,210.73,7.63]
[1756944015097,6.58,210.87,210.74,3.95549224]
[1756944015298,6.58,210.87,210.76,7.73]
[1756944015699,6.58,210.87,210.76,3.95549224]
[1756944015894,6.58,210.87,210.77,7.73]
[1756944016699,6.58,210.87,210.78,7.73]
[1756944016895,6.58,210.87,210.78,3.95549224]
[1756944017199,6.58,210.87,210.79,7.73]
[1756944021604,6.58,210.9,210.79,7.73]
[1756944030808,116.94,210.89,210.79,7.73]
[1756944033111,6.56,210.88,210.79,7.73]
[1756944033909,6.56,210.88,210.74,3.95549224]
[1756944034115,6.56,210.88,210.75,7.73]
[1756944037918,6.56,210.86,210.75,7.73]
[1756944038120,6.56,210.86,210.75,11.68549224]
[1756944038412,6.56,210.86,210.76,7.73]
[1756944038618,6.56,210.9,210.78,7.73]
[1756944039824,6.56,210.9,210.78,4.2682]
[1756944040024,6.56,210.9,210.79,7.73]
[1756944041626,6.56,210.9,210.79,4.2679]
[1756944041927,123.52,210.94,210.8,7.73]
[1756944042816,123.52,210.94,210.8,11.68549224]
[1756944043019,123.52,210.94,210.81,7.77]
[1756944044627,123.52,210.94,210.81,11.72549224]
[1756944044824,123.52,210.94,210.82,7.77]
[1756944045225,123.52,210.94,210.82,11.72549224]
[1756944045423,123.52,210.94,210.83,7.77]
[1756944045923,123.52,210.94,210.83,11.72549224]
[1756944046122,123.52,210.94,210.84,7.77]
[1756944047931,6.58,210.94,210.84,7.77]
[1756944048231,100.0,211.0,210.84,7.77]
[1756944048430,6.58,210.99,210.85,7.77]
[1756944048631,6.58,210.99,210.84,3.95549224]
[1756944048632,6.58,210.99,210.86,3.95549224]
[1756944048829,6.58,210.99,210.87,7.77]
[1756944049425,6.58,210.99,210.87,11.72549224]
[1756944049730,6.58,210.99,210.88,7.77]
[1756944073363,6.58,210.99,210.83,7.17]
[1756944081166,100.0,211.0,210.83,7.17]
[1756944081167,100.0,211.0,210.83,3.95549224]
[1756944081467,6.56,210.99,210.84,7.17]
[1756944083068,6.56,210.99,210.85,7.17]
[1756944084966,6.56,210.99,210.86,7.17]
[1756944085175,6.56,210.99,210.88,7.17]
[1756944087465,6.56,210.99,210.88,3.95549224]
[1756944087771,6.56,210.99,210.89,7.17]
[1756944090877,6.56,210.99,210.91,7.17]
[1756944092280,6.56,210.99,210.92,7.17]
[1756944093178,100.0,211.0,210.92,7.17]
[1756944094883,106.56,211.0,210.92,7.17]
[1756944097577,106.56,211.0,210.92,11.4355]
[1756944098881,106.56,211.0,210.92,7.17]
[1756944099980,106.56,211.0,210.92,11.12549224]
[1756944101288,106.56,211.0,210.92,7.17]
[1756944102382,106.56,211.0,210.92,11.4354]
[1756944103890,106.56,211.0,210.92,7.17]
[1756944106488,106.56,211.0,210.93,4.2653]
[1756944108294,106.56,211.0,210.92,7.17]
[1756944109594,106.56,211.0,210.89,15.59149224]
[1756944109894,100.0,211.0,210.89,15.59149224]
[1756944110195,6.58,210.99,210.89,15.59149224]
[1756944110392,100.0,211.0,210.89,15.59149224]
[1756944110585,6.58,210.99,210.89,15.59149224]
[1756944110786,100.0,211.0,210.89,15.59149224]
[1756944111590,6.58,210.99,210.89,3.95549224]
[1756944111898,6.58,210.97,210.83,3.95549224]
[1756944112293,6.58,210.97,210.81,7.37]
[1756944114999,6.58,210.97,210.79,3.95549224]
[1756944115192,6.58,210.97,210.77,7.37]
[1756944115193,6.58,210.94,210.77,7.37]
[1756944115398,6.58,210.95,210.77,7.37]
[1756944116092,6.58,210.93,210.77,7.37]
[1756944118501,6.58,210.91,210.73,7.37]
[1756944119601,124.0,210.9,210.73,7.37]
[1756944119900,6.58,210.89,210.73,7.37]
[1756944123404,20.82,210.89,210.73,7.37]
[1756944124405,88.38,210.88,210.73,7.37]
[1756944124607,6.58,210.87,210.73,7.37]
[1756944125402,6.58,210.85,210.73,7.37]
[1756944125602,13.62,210.84,210.73,7.37]
[1756944125803,6.58,210.85,210.73,7.37]
[1756944126307,19.82,210.85,210.73,7.37]
[1756944126501,6.58,210.85,210.73,7.37]
[1756944126708,19.82,210.85,210.73,7.37]
[1756944127006,6.58,210.85,210.74,7.37]
[1756944129909,6.58,210.85,210.68,7.37]
[1756944130808,6.58,210.83,210.68,7.37]
[1756944132204,13.0,210.82,210.68,7.37]
[1756944132707,6.59,210.81,210.68,7.37]
[1756944134806,6.59,210.81,210.65,0.82525078]
[1756944135006,6.59,210.81,210.65,7.27]
[1756944136110,6.59,210.79,210.65,7.27]
[1756944139610,6.59,210.78,210.57,7.27]
[1756944139810,20.83,210.78,210.57,7.27]
[1756944140116,35.08,210.78,210.57,7.27]
[1756944141012,6.59,210.76,210.57,7.27]
[1756944142313,20.83,210.76,210.57,7.27]
[1756944142514,6.59,210.76,210.57,7.27]
[1756944144220,116.82,210.75,210.57,7.27]
[1756944144520,161.88923879,210.74,210.57,7.27]
[1756944146624,161.88923879,210.74,210.5,7.27]
[1756944146823,6.59,210.72,210.5,7.27]
[1756944147014,20.83,210.72,210.5,7.27]
[1756944147418,6.59,210.72,210.5,7.27]
[1756944147624,6.59,210.7,210.5,7.27]
[1756944147820,6.59,210.7,210.51,7.27]
[1756944151428,6.59,210.7,210.52,7.27]
[1756944151733,11.58,210.69,210.52,7.27]
[1756944152028,11.58,210.69,210.43,182.20167135]
[1756944152029,11.58,210.69,210.55,7.27]
[1756944152820,6.59,210.7,210.55,7.27]
[1756944153025,22.98,210.69,210.55,7.27]
[1756944153223,6.59,210.7,210.56,4.2728]
[1756944153421,6.59,210.7,210.57,7.27]
[1756944153835,6.59,210.7,210.52,10.96]
[1756944153836,6.59,210.7,210.53,7.27]
[1756944155931,6.59,210.7,210.57,7.27]
[1756944162836,22.38,210.69,210.57,7.27]
[1756944163032,6.59,210.68,210.57,7.27]
[1756944165838,32.78,210.67,210.57,7.27]
[1756944167453,6.59,210.66,210.57,7.27]
[1756944170640,89.57923879,210.74,210.57,7.27]
[1756944170641,6.59,210.73,210.57,7.27]
[1756944170841,42.8,210.72,210.57,7.27]
[1756944171447,89.57923879,210.74,210.57,7.27]
[1756944171641,6.59,210.77,210.57,11.20999982]
[1756944171836,6.59,210.77,210.58,11.50999982]
[1756944172045,6.59,210.77,210.59,7.57]
[1756944172741,325.41,210.83,210.59,7.57]
[1756944172948,116.86,210.82,210.6,3.93999982]
[1756944173148,325.41,210.83,210.62,3.93999982]
[1756944173448,318.82,210.83,210.71,7.57]
[1756944176338,116.84,210.89,210.69,3.93999982]
[1756944176538,116.84,210.89,210.71,3.93999982]
[1756944176742,116.84,210.89,210.75,4.2689]
[1756944177044,0.03195837,210.82,210.76,7.57]
[1756944177249,0.03195837,210.82,210.81,7.57]
[1756944177551,116.84,210.89,210.81,7.57]
[1756944177739,6.62,210.93,210.81,7.57]
[1756944178948,6.62,210.93,210.85,0.03112597]
[1756944180541,6.62,210.93,210.85,7.60112597]
[1756944181247,116.94,210.94,210.85,7.60112597]
[1756944182554,422.83891923,210.97,210.85,11.86792597]
[1756944182845,416.21891923,210.97,210.86,7.57]
[1756944183046,97.19891923,210.97,210.86,7.57]
[1756944183450,97.19891923,210.97,210.9,7.57]
[1756944183951,216.88,211.0,210.9,7.57]
[1756944185042,6.62,210.99,210.9,7.57]
[1756944186748,6.62,210.99,210.89,0.03634901]
[1756944187649,124.0,210.98,210.89,0.03634901]
[1756944187855,6.62,210.97,210.89,0.03634901]
[1756944192457,116.86,210.96,210.89,0.03634901]
[1756944193859,116.86,210.96,210.9,7.3]
[1756944195357,124.0,210.99,210.9,7.3]
[1756944195564,116.9,210.98,210.9,7.3]
[1756944195763,203.52942481,211.0,210.9,7.3]
[1756944195966,116.9,210.99,210.9,7.3]
[1756944196464,203.52942481,211.0,210.9,7.3]
[1756944196764,106.61,211.0,210.9,7.3]
[1756944198665,100.0,211.0,210.9,7.3]
[1756944201762,100.0,211.0,210.92,7.3]
[1756944202361,100.0,211.0,210.95,7.3]
[1756944202860,106.59,211.0,210.94,0.03058118]
[1756944204465,223.49,211.0,210.94,0.03058118]
[1756944206759,106.59,211.0,210.94,0.03058118]
[1756944206960,223.41,211.0,210.94,0.03058118]
[1756944209269,106.59,211.0,210.94,0.03058118]
[1756944218474,100.0,211.0,210.95,7.3]
[1756944219077,100.0,211.0,210.94,0.03058118]
[1756944219474,100.0,211.0,210.95,7.3]
[1756944219973,100.0,211.0,210.98,7.3]
[1756944220178,100.0,211.0,210.97,4.2644]
[1756944220578,100.0,211.0,210.98,7.3]
[1756944221379,100.0,211.0,210.98,0.48]
[1756944221572,100.0,211.0,210.99,7.3]
[1756944223376,100.0,211.0,210.99,7.78]
[1756944223776,44.8836,211.0,210.99,7.78]
[1756944223983,13.0424,211.0,210.99,7.78]
[1756944224777,8.0424,211.0,210.99,7.78]
[1756944225377,8.0424,211.0,210.99,124.16]
[1756944225884,8.0424,211.0,210.99,128.08820515]
[1756944226078,8.0424,211.0,210.99,0.48]
[1756944226280,8.0424,211.0,210.99,121.36820515]
[1756944226480,3.0424,211.0,210.99,121.36820515]
[1756944226981,3.0424,211.0,210.99,117.44]
[1756944227182,0.9704,211.0,210.99,117.44]
[1756944227379,7.16,211.09,210.99,117.44]
[1756944227582,7.16,211.09,210.99,116.96]
[1756944228085,7.16,211.09,211.02,0.03480376]
[1756944228877,7.16,211.19,211.02,116.91480376]
[1756944229080,116.72,211.2,211.02,116.91480376]
[1756944229286,116.72,211.2,211.02,116.88]
[1756944229584,11.422,211.1,211.09,0.03524279]
[1756944230375,7.16,211.06,210.98,17.18]
[1756944230987,11.4228,211.06,210.98,17.18]
[1756944232486,11.4228,211.06,210.98,17.2]
[1756944232686,7.16,211.06,210.98,17.2]
[1756944233286,7.16,211.06,210.98,0.02]
[1756944233688,7.16,211.06,210.99,116.8]
[1756944234083,7.16,211.06,211.0,0.02]
[1756944234780,7.16,211.06,211.01,116.8]
[1756944234983,4.2625,211.07,211.01,116.8]
[1756944235289,7.16,211.08,211.01,116.82]
[1756944235583,7.16,211.08,211.0,0.02]
[1756944235788,4.2632,211.04,210.95,0.02]
[1756944235984,116.72,211.2,210.95,0.02]
[1756944235985,7.16,211.03,210.95,0.02]
[1756944236290,6.8,211.12,210.96,116.88]
[1756944236588,7.16,211.11,210.96,116.88]
[1756944236789,6.8,211.12,210.96,116.88]
[1756944237285,7.16,211.11,210.96,116.88]
[1756944237489,6.8,211.12,210.96,116.88]
[1756944237892,4.2633,211.04,210.96,116.88]
[1756944238091,7.16,211.03,210.96,116.88]
[1756944240593,7.16,211.17,210.97,0.02]
[1756944240788,7.16,211.15,210.97,0.02]
[1756944241186,7.16,211.09,210.97,0.02]
[1756944241787,7.16,211.09,210.98,116.94]
[1756944242282,7.16,211.09,210.99,0.02]
[1756944244887,7.16,211.09,210.99,3.92820515]
[1756944245089,7.16,211.09,211.0,0.02]
[1756944245393,7.16,211.09,211.01,116.9]
[1756944245791,7.16,211.14,211.02,0.02]
[1756944246594,7.16,211.21,211.03,116.9]
[1756944246789,0.03159111,211.1,211.03,116.9]
[1756944247200,7.16,211.11,211.03,116.9]
[1756944247493,7.16,211.21,211.03,116.9]
[1756944247698,10.84,211.22,211.03,116.9]
[1756944248085,7.16,211.21,211.03,116.9]
[1756944248295,10.84,211.22,211.03,116.9]
[1756944248593,7.16,211.1,211.03,116.9]
[1756944251098,7.16,211.1,211.02,0.02]
[1756944251294,7.16,211.1,210.97,0.02]
[1756944251498,7.16,211.1,210.99,0.02]
[1756944252089,7.66,211.21,210.99,0.02]
[1756944252496,7.66,211.14,210.99,0.02]
[1756944253292,11.9212,211.14,210.99,0.02]
[1756944255796,11.9212,211.14,211.0,3.93236238]
[1756944258000,11.9212,211.14,210.94,332.76]
[1756944258001,5.32114229,211.21,211.01,32.32]
[1756944258198,7.66,211.2,211.02,32.32]
[1756944258397,5.32114229,211.21,211.02,30.38]
[1756944258797,7.66,211.2,211.02,30.38]
[1756944258997,7.66,211.11,211.02,30.38]
[1756944261500,7.66,211.11,211.02,34.31236238]
[1756944265206,7.66,211.11,211.03,3.93236238]
[1756944271897,7.66,211.11,211.02,30.38]
[1756944271898,7.66,211.11,211.04,3.93236238]
[1756944274608,7.66,211.11,211.06,3.93236238]
[1756944274806,7.66,211.13,211.06,3.93236238]
[1756944275206,11.9214,211.13,211.05,3.93236238]
[1756944275712,11.9214,211.13,211.06,3.93236238]
[1756944275905,11.9214,211.13,211.05,3.93236238]
[1756944276309,11.9214,211.13,211.06,3.93236238]
[1756944276509,11.9214,211.13,211.05,3.93236238]
[1756944276813,11.9214,211.13,211.06,3.93236238]
[1756944277406,11.9214,211.13,211.05,3.93236238]
[1756944279512,7.66,211.22,211.05,3.93236238]
[1756944279708,7.66,211.16,211.0,3.93236238]
[1756944280314,7.66,211.16,210.99,3.93236238]
[1756944280709,7.66,211.16,210.95,5.27398965]
[1756944280710,7.66,211.14,210.98,3.93236238]
[1756944281106,7.66,211.14,210.99,3.93236238]
[1756944281810,7.66,211.09,210.99,3.93236238]
[1756944282010,7.66,211.09,211.0,3.93236238]
[1756944283515,7.66,211.09,211.01,31.8]
[1756944284112,7.66,211.09,211.03,3.93236238]
[1756944287217,7.66,211.09,211.04,3.93236238]
[1756944287419,7.33,211.11,211.04,3.93236238]
[1756944289623,7.33,211.09,211.03,3.93236238]
[1756944290818,7.33,211.11,211.04,3.93236238]
[1756944292726,11.5918,211.11,211.04,3.93236238]
[1756944293414,4.262,211.1,211.04,3.93236238]
[1756944293618,4.262,211.1,211.01,5.27398965]
[1756944293619,7.33,211.09,211.03,3.93236238]
[1756944293814,5.32114229,211.18,211.04,3.93236238]
[1756944294018,7.33,211.18,211.04,3.93236238]
[1756944295626,7.33,211.11,211.04,3.93236238]
[1756944300925,7.33,211.11,211.05,3.93236238]
[1756944301823,11.5918,211.11,211.05,3.93236238]
[1756944302125,7.33,211.11,211.05,3.93236238]
[1756944302325,7.33,211.11,211.04,3.93236238]
[1756944302720,4.262,211.1,211.05,3.93236238]
[1756944304021,7.33,211.09,211.05,3.93236238]
[1756944304628,7.33,211.18,211.06,3.93236238]
[1756944305927,4.2609,211.15,211.06,3.93236238]
[1756944306127,7.33,211.14,211.06,3.93236238]
[1756944307531,7.33,211.14,211.07,3.93236238]
[1756944309230,7.33,211.14,211.05,3.93236238]
[1756944310429,7.33,211.14,211.04,3.93236238]
[1756944311627,7.33,211.14,211.01,3.93236238]
[1756944311830,105.35155543,211.25,211.02,116.6]
[1756944312030,7.44,211.24,211.01,3.93236238]
[1756944312226,105.35155543,211.25,211.03,116.6]
[1756944312628,7.44,211.23,211.03,120.53236238]
[1756944312829,7.44,211.14,211.03,120.53236238]
[1756944313029,116.58,211.24,211.03,116.6]
[1756944313228,116.58,211.24,211.04,116.58]
[1756944313427,7.44,211.22,211.04,116.58]
[1756944313629,116.58,211.23,211.04,116.58]
[1756944314132,7.44,211.12,211.04,116.58]
[1756944317142,7.44,211.12,211.02,3.93236238]
[1756944317342,7.44,211.12,211.03,116.58]
[1756944319139,7.44,211.12,211.02,3.93236238]
[1756944319337,7.44,211.11,211.03,116.58]
[1756944319743,7.44,211.11,211.03,120.51236238]
[1756944320338,7.44,211.11,211.04,3.93236238]
[1756944320539,7.44,211.11,211.02,3.93236238]
[1756944320744,7.44,211.2,211.02,34.97236238]
[1756944321245,7.44,211.11,211.02,40.07236238]
[1756944321835,7.44,211.11,210.97,139.81263848]
[1756944321836,7.44,211.11,210.98,3.93236238]
[1756944322238,7.44,211.18,210.97,138.47101121]
[1756944322440,7.44,211.05,210.97,138.47101121]
[1756944324844,7.44,211.09,210.97,138.47101121]
[1756944325050,7.44,211.09,210.99,3.93236238]
[1756944326048,7.44,211.09,211.0,3.93236238]
[1756944326744,7.44,211.09,211.01,3.93236238]
[1756944326952,7.44,211.09,211.0,3.93236238]
[1756944327153,7.44,211.09,211.01,120.51236238]
[1756944327353,4.2615,211.12,211.01,120.51236238]
[1756944327652,7.44,211.13,211.02,3.93236238]
[1756944328455,7.44,211.13,211.03,3.93236238]
[1756944329357,11.7014,211.13,211.03,3.93236238]
[1756944329555,11.7014,211.13,211.03,120.51236238]
[1756944332056,11.7014,211.13,211.03,3.93236238]
[1756944332257,11.7014,211.13,211.03,116.58]
[1756944332860,4.2616,211.12,211.02,3.93236238]
[1756944333062,7.44,211.11,211.03,28.26]
[1756944333255,7.44,211.24,211.04,55.12]
[1756944333449,0.03372166,211.09,211.07,3.93236238]
[1756944333655,7.44,211.16,211.07,3.93236238]
[1756944334159,7.44,211.16,211.06,3.96538507]
[1756944334360,7.44,211.16,211.07,3.93236238]
[1756944335260,7.44,211.16,211.06,3.96538507]
[1756944337464,7.44,211.16,211.07,3.93236238]
[1756944337966,7.44,211.16,211.06,3.96538507]
[1756944338366,7.44,211.16,211.07,3.93236238]
[1756944338867,7.44,211.16,211.06,3.96538507]
[1756944339365,7.44,211.16,211.07,3.93236238]
[1756944341873,7.44,211.16,211.08,0.03]
[1756944367986,7.44,211.16,211.08,3.96236238]
[1756944369382,7.44,211.16,211.09,3.93236238]
[1756944369984,7.44,211.16,211.1,0.03283367]
[1756944374286,7.44,211.16,211.1,3.96519605]
[1756944374487,7.85,211.2,211.11,3.93236238]
[1756944376686,7.85,211.2,211.14,3.93236238]
[1756944377391,7.85,211.27,211.15,0.03535159]
[1756944377799,12.1086,211.27,211.14,3.93236238]
[1756944378098,12.1086,211.27,211.19,0.03041032]
[1756944378099,7.85,211.27,211.19,0.03041032]
[1756944379099,7.85,211.24,211.19,0.03041032]
[1756944379493,7.85,211.24,211.14,3.93236238]
[1756944379697,7.85,211.24,211.19,0.03263515]
[1756944381398,12.1092,211.24,211.19,0.03263515]
[1756944381595,12.1092,211.24,211.11,7.75236238]
[1756944381992,12.1092,211.24,211.12,3.98236238]
[1756944382294,12.1092,211.24,211.12,0.05]
[1756944382892,12.1092,211.24,211.12,3.98236238]
[1756944383997,7.85,211.28,211.12,3.93236238]
[1756944384189,7.85,211.28,211.09,3.93236238]
[1756944384899,4.2598,211.21,211.1,0.05]
[1756944385100,7.85,211.2,211.1,0.05]
[1756944386793,12.1,211.26,211.1,0.05]
[1756944386794,7.85,211.18,211.1,0.05]
[1756944387399,7.85,211.18,211.05,5.27398965]
[1756944387400,12.54,211.18,211.01,10.0]
[1756944387605,7.85,211.17,211.01,13.98]
[1756944387803,12.18,211.19,211.01,13.98]
[1756944388103,3.7013702,211.18,211.01,13.98]
[1756944388308,7.85,211.16,211.01,13.98]
[1756944388508,7.85,211.14,211.01,13.98]
[1756944388706,7.85,211.12,211.01,13.98]
[1756944388908,7.85,211.1,211.01,13.98]
[1756944389406,7.85,211.1,211.01,10.0]
[1756944389601,7.85,211.1,211.02,3.98]
[1756944391008,3.69931148,211.09,211.01,10.0]
[1756944391200,3.69931148,211.08,211.01,10.0]
[1756944391507,7.85,211.19,211.01,10.0]
[1756944391707,7.85,211.17,211.01,10.0]
[1756944392007,7.85,211.07,211.01,10.0]
[1756944393001,11.28,211.2,211.01,10.0]
[1756944393205,7.85,211.18,211.01,10.0]
[1756944393506,3.69719882,211.17,211.01,10.0]
[1756944393700,4.2629,211.06,211.01,10.0]
[1756944393900,3.69719882,211.05,211.01,10.0]
[1756944394102,4.2629,211.06,211.01,10.0]
[1756944394301,7.85,211.03,211.01,10.0]
[1756944394499,7.85,211.11,211.01,10.0]
[1756944394707,7.85,211.09,211.01,10.0]
[1756944394906,3.6934894,211.08,211.01,10.0]
[1756944395108,7.85,211.06,211.01,10.0]
[1756944395409,7.85,211.04,211.01,10.0]
[1756944395708,19.88,211.12,211.01,10.0]
[1756944395908,7.85,211.1,211.01,10.0]
[1756944396109,3.69132189,211.09,211.01,10.0]
[1756944396407,7.85,211.07,211.01,10.0]
[1756944396604,7.85,211.02,211.01,10.0]
[1756944400103,4.264,211.0,210.93,3.98]
[1756944400304,12.114,211.0,210.93,3.98]
[1756944402803,19.88,211.12,210.88,3.99]
[1756944402804,7.67,211.11,210.88,3.99]
[1756944403112,7.67,211.09,210.88,3.99]
[1756944403306,4.2657,210.92,210.88,3.99]
[1756944403512,11.9357,210.92,210.88,3.99]
[1756944404511,7.67,210.91,210.88,3.99]
[1756944404705,7.67,210.91,210.82,1.11917599]
[1756944404915,7.67,210.91,210.83,3.99]
[1756944405104,7.67,210.98,210.83,3.99]
[1756944405406,4.2651,210.94,210.83,3.99]
[1756944405611,11.9351,210.94,210.83,3.99]
[1756944405811,7.67,210.94,210.83,3.99]
[1756944406801,7.82,211.03,210.83,3.99]
[1756944407006,11.34188235,211.02,210.83,3.99]
[1756944407209,7.67,211.02,210.83,3.99]
[1756944407611,11.9347,210.97,210.83,3.99]
[1756944409511,4.2649,210.96,210.85,3.99]
[1756944409710,7.67,210.95,210.85,3.99]
[1756944410113,11.9351,210.95,210.85,3.99]
[1756944416216,7.67,210.95,210.85,3.99]
[1756944420322,4.2651,210.94,210.85,3.99]
[1756944420518,7.67,211.03,210.85,3.99]
[1756944420719,7.67,211.01,210.85,3.99]
[1756944421123,4.2651,210.95,210.85,3.99]
[1756944421324,7.67,210.94,210.85,3.99]
[1756944423428,11.9353,210.94,210.85,3.99]
[1756944423729,7.67,210.94,210.82,1.11917599]
[1756944424723,4.2663,210.89,210.82,1.11917599]
[1756944424927,7.67,210.88,210.82,1.11917599]
[1756944425523,7.67,210.86,210.82,1.11917599]
[1756944426219,4.267,210.85,210.82,1.11917599]
[1756944426624,7.67,210.84,210.82,1.11917599]
[1756944426927,4.267,210.85,210.82,1.11917599]
[1756944427429,7.67,210.84,210.82,1.11917599]
[1756944427818,4.267,210.85,210.82,1.11917599]
[1756944428326,7.67,210.84,210.82,1.11917599]
[1756944428628,4.267,210.85,210.82,1.11917599]
[1756944429225,7.67,210.86,210.82,1.11917599]
[1756944429524,0.03429212,210.87,210.82,1.11917599]
[1756944430129,0.03429212,210.87,210.83,3.99]
[1756944430533,7.70429212,210.87,210.83,3.99]
[1756944430929,0.03429212,210.87,210.83,3.99]
[1756944431132,0.03429212,210.87,210.82,1.11917599]
[1756944431734,7.67,210.86,210.82,1.11917599]
[1756944431933,0.03429212,210.87,210.82,1.11917599]
[1756944432130,7.73,210.86,210.82,1.11917599]
[1756944432335,0.03429212,210.87,210.82,1.11917599]
[1756944432535,7.73,210.86,210.82,5.10917599]
[1756944433236,0.03429212,210.87,210.82,5.10917599]
[1756944433536,7.73,210.86,210.82,5.10917599]
[1756944435737,0.03429212,210.87,210.82,5.10917599]
[1756944435933,7.73,210.86,210.82,5.10917599]
[1756944436139,0.03429212,210.87,210.82,5.10917599]
[1756944436739,0.03429212,210.87,210.82,1.11917599]
[1756944437549,7.73,210.86,210.82,1.11917599]
[1756944437942,0.03429212,210.87,210.82,1.11917599]
[1756944438332,7.73,210.86,210.82,1.11917599]
[1756944438734,0.03429212,210.87,210.82,1.11917599]
[1756944439040,7.73,210.86,210.82,1.11917599]
[1756944439240,7.73,210.86,210.83,3.99]
[1756944439839,0.03429212,210.87,210.83,3.99]
[1756944440040,0.03429212,210.87,210.82,1.11917599]
[1756944440344,7.76429212,210.87,210.83,3.99]
[1756944440645,7.73,210.86,210.83,3.99]
[1756944441947,7.73,210.86,210.82,1.11917599]
[1756944442140,0.03429212,210.87,210.82,1.11917599]
[1756944442846,7.73,210.86,210.82,1.11917599]
[1756944443146,0.03429212,210.87,210.82,1.11917599]
[1756944443346,7.73,210.86,210.82,1.11917599]
[1756944443538,0.03429212,210.87,210.82,1.11917599]
[1756944444046,7.73,210.86,210.82,1.11917599]
[1756944444253,7.73,210.86,210.83,3.99]
[1756944444648,0.03429212,210.87,210.82,1.11917599]
[1756944444848,0.03429212,210.87,210.83,3.99]
[1756944445145,7.73,210.86,210.83,3.99]
[1756944445348,0.03429212,210.87,210.82,1.11917599]
[1756944445551,7.73,210.86,210.82,1.11917599]
[1756944445945,0.03429212,210.87,210.82,1.11917599]